[Event "Late-Titled-Tuesday-Blitz-June-04-2024"]
[Site "Chess.com"]
[Date "2024.06.04"]
[Round "9"]
[White "JaackCamel"]
[Black "Mikhal867"]
[Result "0-1"]
[WhiteElo "2229"]
[BlackElo "2480"]
[TimeControl "180+1"]
[EndTime "15:44:19 PDT"]
[Termination "Mikhal867 won on time"]

1. d4 {[%clk 0:02:59.6]} 1... Nf6 {[%clk 0:02:59.4]} 2. c4 {[%clk 0:02:58.7]}
2... g6 {[%clk 0:02:59.9]} 3. Nc3 {[%clk 0:02:58.2]} 3... Bg7 {[%clk 0:03:00.5]}
4. e4 {[%clk 0:02:58.1]} 4... O-O {[%clk 0:03:01.1]} 5. Nf3 {[%clk 0:02:56.9]}
5... d6 {[%clk 0:03:01.6]} 6. Be2 {[%clk 0:02:56.8]} 6... e5 {[%clk 0:03:02.1]}
7. Be3 {[%clk 0:02:56.3]} 7... Nc6 {[%clk 0:03:02.2]} 8. d5 {[%clk 0:02:56.1]}
8... Ne7 {[%clk 0:03:02.8]} 9. Nd2 {[%clk 0:02:56.3]} 9... Nd7 {[%clk
0:02:55.2]} 10. b4 {[%clk 0:02:43.8]} 10... f5 {[%clk 0:02:53.6]} 11. f3 {[%clk
0:02:43.3]} 11... a5 {[%clk 0:02:53]} 12. a3 {[%clk 0:02:42.9]} 12... Nf6 {[%clk
0:02:50.6]} 13. c5 {[%clk 0:02:41.5]} 13... f4 {[%clk 0:02:39.8]} 14. Bf2 {[%clk
0:02:40.7]} 14... g5 {[%clk 0:02:40.1]} 15. Nc4 {[%clk 0:02:38.5]} 15... g4
{[%clk 0:02:29.2]} 16. cxd6 {[%clk 0:02:37.2]} 16... cxd6 {[%clk 0:02:28.7]} 17.
Nb5 {[%clk 0:02:33.5]} 17... axb4 {[%clk 0:02:20.9]} 18. Nb6 {[%clk 0:02:23.9]}
18... Ra6 {[%clk 0:02:11]} 19. Nxc8 {[%clk 0:02:16.7]} 19... Qxc8 {[%clk
0:02:03.7]} 20. axb4 {[%clk 0:02:06]} 20... Nfxd5 {[%clk 0:01:45.6]} 21. exd5
{[%clk 0:01:41.5]} 21... e4 {[%clk 0:01:44.3]} 22. Rxa6 {[%clk 0:01:37.6]} 22...
bxa6 {[%clk 0:01:42.7]} 23. Nxd6 {[%clk 0:01:37]} 23... Qc3+ {[%clk 0:01:40.3]}
24. Kf1 {[%clk 0:01:34.3]} 24... e3 {[%clk 0:01:28.7]} 25. Be1 {[%clk
0:01:31.3]} 25... Qe5 {[%clk 0:01:24.6]} 26. Nc4 {[%clk 0:01:27.1]} 26... Qxd5
{[%clk 0:01:24.7]} 27. Qxd5+ {[%clk 0:01:25.5]} 27... Nxd5 {[%clk 0:01:24.7]}
28. fxg4 {[%clk 0:01:15.8]} 28... Rb8 {[%clk 0:01:23.8]} 29. h4 {[%clk
0:00:59.4]} 29... Nxb4 {[%clk 0:01:18.7]} 30. g3 {[%clk 0:00:50.2]} 30... Nd5
{[%clk 0:00:51]} 31. Kg2 {[%clk 0:00:44.8]} 31... Rc8 {[%clk 0:00:34.7]} 32. Kf3
{[%clk 0:00:43.3]} 32... Rf8 {[%clk 0:00:24.1]} 33. gxf4 {[%clk 0:00:30.8]}
33... Nxf4 {[%clk 0:00:18.9]} 34. Kxe3 {[%clk 0:00:25.4]} 34... Ng2+ {[%clk
0:00:15.9]} 35. Kd2 {[%clk 0:00:21.5]} 35... Rd8+ {[%clk 0:00:15.3]} 36. Kc2
{[%clk 0:00:19.5]} 36... Re8 {[%clk 0:00:15.3]} 37. Kd2 {[%clk 0:00:14.5]} 37...
Rd8+ {[%clk 0:00:15]} 38. Kc2 {[%clk 0:00:14.4]} 38... Re8 {[%clk 0:00:14.7]}
39. Kd1 {[%clk 0:00:13.8]} 39... Rd8+ {[%clk 0:00:12.5]} 40. Bd2 {[%clk
0:00:13.6]} 40... Bc3 {[%clk 0:00:12.3]} 41. Kc2 {[%clk 0:00:12.8]} 41... Bxd2
{[%clk 0:00:11.4]} 42. Nxd2 {[%clk 0:00:12.7]} 42... Ne3+ {[%clk 0:00:12.1]} 43.
Kc3 {[%clk 0:00:10.9]} 43... Rc8+ {[%clk 0:00:11.4]} 44. Kd3 {[%clk 0:00:10.7]}
44... Nd5 {[%clk 0:00:10]} 45. Ra1 {[%clk 0:00:09.8]} 45... a5 {[%clk
0:00:09.4]} 46. Kd4 {[%clk 0:00:09.4]} 46... Nf4 {[%clk 0:00:08.8]} 47. Bf3
{[%clk 0:00:08.9]} 47... Rd8+ {[%clk 0:00:09]} 48. Ke3 {[%clk 0:00:08.8]} 48...
Ne6 {[%clk 0:00:07.6]} 49. Ne4 {[%clk 0:00:08.6]} 49... Rb8 {[%clk 0:00:06.4]}
50. Rxa5 {[%clk 0:00:08.1]} 50... Rb3+ {[%clk 0:00:06.5]} 51. Kf2 {[%clk
0:00:07.3]} 51... Nd4 {[%clk 0:00:06.7]} 52. Be2 {[%clk 0:00:05.7]} 52... Rb2
{[%clk 0:00:06.5]} 53. Ng3 {[%clk 0:00:05.9]} 53... Nxe2 {[%clk 0:00:03.9]} 54.
Nxe2 {[%clk 0:00:05.6]} 54... Rb4 {[%clk 0:00:04.2]} 55. Kg3 {[%clk 0:00:04.9]}
55... Rb3+ {[%clk 0:00:04.5]} 56. Kf2 {[%clk 0:00:04.9]} 56... Rb4 {[%clk
0:00:04.6]} 57. Rg5+ {[%clk 0:00:04.9]} 57... Kf7 {[%clk 0:00:04.3]} 58. Ng3
{[%clk 0:00:04.7]} 58... h6 {[%clk 0:00:04.2]} 59. Rf5+ {[%clk 0:00:04.1]} 59...
Kg6 {[%clk 0:00:04.4]} 60. Re5 {[%clk 0:00:03]} 60... Rxg4 {[%clk 0:00:03.9]}
61. Nf5 {[%clk 0:00:03.2]} 61... Kf6 {[%clk 0:00:03.1]} 62. Nxh6 {[%clk
0:00:03.3]} 62... Rxh4 {[%clk 0:00:03.4]} 0-1

[Event "Late-Titled-Tuesday-Blitz-June-04-2024"]
[Site "Chess.com"]
[Date "2024.06.04"]
[Round "9"]
[White "Maus7"]
[Black "Sl4werThanYou"]
[Result "1-0"]
[WhiteElo "2576"]
[BlackElo "2728"]
[TimeControl "180+1"]
[EndTime "15:44:26 PDT"]
[Termination "Maus7 won by checkmate"]

1. e4 {[%clk 0:03:00.9]} 1... e5 {[%clk 0:02:59.5]} 2. Nf3 {[%clk 0:03:00.6]}
2... Nc6 {[%clk 0:03:00.2]} 3. Bb5 {[%clk 0:03:00.6]} 3... a6 {[%clk 0:03:00.1]}
4. Ba4 {[%clk 0:03:00.8]} 4... Nf6 {[%clk 0:03:00.2]} 5. O-O {[%clk 0:03:01.1]}
5... Be7 {[%clk 0:02:54.2]} 6. Re1 {[%clk 0:03:00.7]} 6... b5 {[%clk 0:02:50.6]}
7. Bb3 {[%clk 0:03:00.4]} 7... d6 {[%clk 0:02:51.4]} 8. a4 {[%clk 0:02:57.6]}
8... Bg4 {[%clk 0:02:43.6]} 9. c3 {[%clk 0:02:56.3]} 9... O-O {[%clk 0:02:43]}
10. h3 {[%clk 0:02:54]} 10... Bh5 {[%clk 0:02:42.8]} 11. d3 {[%clk 0:02:50.8]}
11... b4 {[%clk 0:02:40]} 12. Nbd2 {[%clk 0:02:49.8]} 12... bxc3 {[%clk
0:02:36.2]} 13. bxc3 {[%clk 0:02:50.7]} 13... d5 {[%clk 0:02:36.1]} 14. Qc2
{[%clk 0:02:23.5]} 14... Qd7 {[%clk 0:02:25.6]} 15. exd5 {[%clk 0:02:11.8]}
15... Nxd5 {[%clk 0:02:26.5]} 16. Nxe5 {[%clk 0:02:11.7]} 16... Nxe5 {[%clk
0:02:27.4]} 17. Rxe5 {[%clk 0:02:11.9]} 17... Nf6 {[%clk 0:02:28.2]} 18. Ne4
{[%clk 0:01:55.8]} 18... Bg6 {[%clk 0:02:24.8]} 19. Bg5 {[%clk 0:01:35]} 19...
Rae8 {[%clk 0:02:10.7]} 20. Bxf6 {[%clk 0:01:15.7]} 20... Bxf6 {[%clk
0:02:10.3]} 21. Nxf6+ {[%clk 0:01:15.2]} 21... gxf6 {[%clk 0:02:10.9]} 22. Rxe8
{[%clk 0:01:14.9]} 22... Rxe8 {[%clk 0:02:11.5]} 23. Bc4 {[%clk 0:01:14.5]}
23... Qc6 {[%clk 0:02:08.2]} 24. Qb3 {[%clk 0:01:04.5]} 24... Kg7 {[%clk
0:02:04.9]} 25. Rb1 {[%clk 0:00:46.2]} 25... Re2 {[%clk 0:02:02.3]} 26. Qd1
{[%clk 0:00:39.1]} 26... Re5 {[%clk 0:01:50.6]} 27. Rb4 {[%clk 0:00:33.1]} 27...
a5 {[%clk 0:01:49]} 28. Rb5 {[%clk 0:00:32.5]} 28... Qd7 {[%clk 0:01:46.8]} 29.
Rxe5 {[%clk 0:00:20.6]} 29... fxe5 {[%clk 0:01:47.7]} 30. f3 {[%clk 0:00:20.1]}
30... f6 {[%clk 0:01:45]} 31. Kf2 {[%clk 0:00:20]} 31... Qc6 {[%clk 0:01:43.4]}
32. Qb3 {[%clk 0:00:18]} 32... Qc5+ {[%clk 0:01:43.6]} 33. Kf1 {[%clk
0:00:17.7]} 33... Qe3 {[%clk 0:01:43.9]} 34. Qc2 {[%clk 0:00:17.6]} 34... h6
{[%clk 0:01:42.9]} 35. Qb2 {[%clk 0:00:14.5]} 35... Bxd3+ {[%clk 0:01:41.6]} 36.
Bxd3 {[%clk 0:00:14.9]} 36... Qxd3+ {[%clk 0:01:42.5]} 37. Kf2 {[%clk
0:00:15.4]} 37... Qc4 {[%clk 0:01:37.6]} 38. Qc2 {[%clk 0:00:14.4]} 38... Qc5+
{[%clk 0:01:34.2]} 39. Kf1 {[%clk 0:00:14.1]} 39... Qc4+ {[%clk 0:01:34.2]} 40.
Kf2 {[%clk 0:00:14.6]} 40... Qc5+ {[%clk 0:01:33.2]} 41. Kg3 {[%clk 0:00:13.6]}
41... Qe3 {[%clk 0:01:31.3]} 42. c4 {[%clk 0:00:11.3]} 42... Qf4+ {[%clk
0:01:30.6]} 43. Kf2 {[%clk 0:00:11.3]} 43... Qd4+ {[%clk 0:01:31.2]} 44. Kg3
{[%clk 0:00:11.1]} 44... h5 {[%clk 0:01:31.9]} 45. h4 {[%clk 0:00:11.2]} 45...
Qf4+ {[%clk 0:01:30.2]} 46. Kh3 {[%clk 0:00:11.5]} 46... Qd4 {[%clk 0:01:26.1]}
47. c5 {[%clk 0:00:11]} 47... c6 {[%clk 0:01:25.3]} 48. Qf5 {[%clk 0:00:09.4]}
48... Qxc5 {[%clk 0:01:23.4]} 49. Qxh5 {[%clk 0:00:09.1]} 49... Qc4 {[%clk
0:01:23]} 50. Qf5 {[%clk 0:00:08.3]} 50... c5 {[%clk 0:01:18.3]} 51. Qd7+ {[%clk
0:00:08.3]} 51... Qf7 {[%clk 0:01:18.7]} 52. Qc6 {[%clk 0:00:08.5]} 52... c4
{[%clk 0:01:14]} 53. g4 {[%clk 0:00:08.7]} 53... f5 {[%clk 0:01:13.2]} 54. g5
{[%clk 0:00:07.8]} 54... f4 {[%clk 0:01:04.8]} 55. Kg4 {[%clk 0:00:07.3]} 55...
e4 {[%clk 0:00:32.9]} 56. h5 {[%clk 0:00:07.2]} 56... exf3 {[%clk 0:00:32.1]}
57. h6+ {[%clk 0:00:07.4]} 57... Kh7 {[%clk 0:00:31.8]} 58. Qe4+ {[%clk
0:00:06.3]} 58... Kg8 {[%clk 0:00:31.9]} 59. Kxf3 {[%clk 0:00:06.3]} 59... c3
{[%clk 0:00:31.9]} 60. Qa8+ {[%clk 0:00:05.1]} 60... Qf8 {[%clk 0:00:31.3]} 61.
Qd5+ {[%clk 0:00:04.9]} 61... Kh7 {[%clk 0:00:30]} 62. Qd7+ {[%clk 0:00:04.3]}
62... Kg6 {[%clk 0:00:29.8]} 63. Kg4 {[%clk 0:00:03.1]} 63... f3 {[%clk
0:00:23]} 64. Qd3+ {[%clk 0:00:03.1]} 64... Kf7 {[%clk 0:00:22.9]} 65. g6+
{[%clk 0:00:02.9]} 65... Ke6 {[%clk 0:00:22.5]} 66. g7 {[%clk 0:00:02.6]} 66...
Qb4+ {[%clk 0:00:22.3]} 67. Kxf3 {[%clk 0:00:02.2]} 67... Qb7+ {[%clk
0:00:22.3]} 68. Qe4+ {[%clk 0:00:01.1]} 68... Qxe4+ {[%clk 0:00:20.4]} 69. Kxe4
{[%clk 0:00:02]} 69... Kf7 {[%clk 0:00:21.1]} 70. Kd3 {[%clk 0:00:02.1]} 70...
c2 {[%clk 0:00:22]} 71. Kxc2 {[%clk 0:00:02.6]} 71... Kg8 {[%clk 0:00:22.3]} 72.
Kb3 {[%clk 0:00:03.4]} 72... Kh7 {[%clk 0:00:23]} 73. Kc4 {[%clk 0:00:04.3]}
73... Kxh6 {[%clk 0:00:23.7]} 74. Kb5 {[%clk 0:00:05.2]} 74... Kxg7 {[%clk
0:00:24.3]} 75. Kxa5 {[%clk 0:00:06.1]} 75... Kf7 {[%clk 0:00:25.1]} 76. Kb6
{[%clk 0:00:07]} 76... Ke8 {[%clk 0:00:25.8]} 77. Kb7 {[%clk 0:00:07.9]} 77...
Kd8 {[%clk 0:00:26.7]} 78. a5 {[%clk 0:00:08.8]} 78... Kd7 {[%clk 0:00:27.3]}
79. a6 {[%clk 0:00:09.7]} 79... Kd6 {[%clk 0:00:28.2]} 80. a7 {[%clk 0:00:10.6]}
80... Kc5 {[%clk 0:00:29.1]} 81. a8=Q {[%clk 0:00:11.3]} 81... Kd4 {[%clk
0:00:30]} 82. Qc8 {[%clk 0:00:11.6]} 82... Ke3 {[%clk 0:00:30.9]} 83. Qc6 {[%clk
0:00:12.3]} 83... Ke2 {[%clk 0:00:31.8]} 84. Kb6 {[%clk 0:00:13]} 84... Ke3
{[%clk 0:00:32.7]} 85. Qc5+ {[%clk 0:00:13.9]} 85... Ke4 {[%clk 0:00:33.6]} 86.
Kb5 {[%clk 0:00:14.7]} 86... Kd3 {[%clk 0:00:34.4]} 87. Qc4+ {[%clk 0:00:15.6]}
87... Ke3 {[%clk 0:00:34.5]} 88. Kc5 {[%clk 0:00:16.5]} 88... Kf3 {[%clk
0:00:35.4]} 89. Kd5 {[%clk 0:00:17.2]} 89... Ke3 {[%clk 0:00:35.9]} 90. Ke5
{[%clk 0:00:18.1]} 90... Kd2 {[%clk 0:00:36.5]} 91. Qe4 {[%clk 0:00:19]} 91...
Kc3 {[%clk 0:00:37]} 92. Kf4 {[%clk 0:00:19.7]} 92... Kd2 {[%clk 0:00:37.4]} 93.
Kf3 {[%clk 0:00:20.6]} 93... Kc3 {[%clk 0:00:38.3]} 94. Ke3 {[%clk 0:00:20.4]}
94... Kb3 {[%clk 0:00:38.7]} 95. Qd4 {[%clk 0:00:20.4]} 95... Kc2 {[%clk
0:00:39.2]} 96. Ke2 {[%clk 0:00:20.4]} 96... Kb3 {[%clk 0:00:40.1]} 97. Kd2
{[%clk 0:00:20.6]} 97... Ka3 {[%clk 0:00:39.8]} 98. Qb6 {[%clk 0:00:20.9]} 98...
Ka4 {[%clk 0:00:40]} 99. Kc3 {[%clk 0:00:21]} 99... Ka3 {[%clk 0:00:40.9]} 100.
Qb3# {[%clk 0:00:21.3]} 1-0

[Event "Late-Titled-Tuesday-Blitz-June-04-2024"]
[Site "Chess.com"]
[Date "2024.06.04"]
[Round "9"]
[White "profedechess93"]
[Black "mbojan"]
[Result "1-0"]
[WhiteElo "2618"]
[BlackElo "2825"]
[TimeControl "180+1"]
[EndTime "15:44:31 PDT"]
[Termination "profedechess93 won on time"]

1. e4 {[%clk 0:03:00.9]} 1... a6 {[%clk 0:02:59.7]} 2. d4 {[%clk 0:03:00.5]}
2... e6 {[%clk 0:02:59.7]} 3. Bd3 {[%clk 0:03:00.7]} 3... d5 {[%clk 0:02:59.8]}
4. e5 {[%clk 0:03:00.8]} 4... c5 {[%clk 0:03:00.2]} 5. c3 {[%clk 0:03:01.3]}
5... Bd7 {[%clk 0:03:00.6]} 6. Nf3 {[%clk 0:02:30.1]} 6... cxd4 {[%clk
0:02:56.2]} 7. Nxd4 {[%clk 0:02:29.6]} 7... Nc6 {[%clk 0:02:51.8]} 8. Nf3 {[%clk
0:02:18.9]} 8... Bc5 {[%clk 0:02:42.8]} 9. O-O {[%clk 0:02:15.8]} 9... Nge7
{[%clk 0:02:36.5]} 10. b4 {[%clk 0:02:15]} 10... Ba7 {[%clk 0:02:36.4]} 11. Na3
{[%clk 0:02:13.3]} 11... Qc7 {[%clk 0:02:14.5]} 12. Qe2 {[%clk 0:01:41]} 12...
Ng6 {[%clk 0:02:12.5]} 13. Re1 {[%clk 0:01:34.6]} 13... f6 {[%clk 0:02:00.2]}
14. Bxg6+ {[%clk 0:00:52.9]} 14... hxg6 {[%clk 0:01:59.2]} 15. Bf4 {[%clk
0:00:53.6]} 15... Rh5 {[%clk 0:00:31.6]} 16. b5 {[%clk 0:00:31.5]} 16... Nxe5
{[%clk 0:00:27.1]} 17. Nxe5 {[%clk 0:00:28.8]} 17... fxe5 {[%clk 0:00:27.4]} 18.
Bxe5 {[%clk 0:00:29.4]} 18... Qc5 {[%clk 0:00:23.3]} 19. Nc2 {[%clk 0:00:28.2]}
19... Bxb5 {[%clk 0:00:21.7]} 20. Qg4 {[%clk 0:00:28.4]} 20... Kf7 {[%clk
0:00:21.9]} 21. Nd4 {[%clk 0:00:27.3]} 21... Bd7 {[%clk 0:00:21.2]} 22. Re3
{[%clk 0:00:25.2]} 22... Qc4 {[%clk 0:00:17.4]} 23. Rg3 {[%clk 0:00:24.9]} 23...
Rh6 {[%clk 0:00:13.8]} 24. Bf4 {[%clk 0:00:21.4]} 24... Rah8 {[%clk 0:00:13.8]}
25. Bxh6 {[%clk 0:00:21.1]} 25... Rxh6 {[%clk 0:00:14.7]} 26. Qf4+ {[%clk
0:00:21.1]} 26... Kg8 {[%clk 0:00:13.8]} 27. Qd6 {[%clk 0:00:17.9]} 27... Qc8
{[%clk 0:00:12.8]} 28. Qe7 {[%clk 0:00:13]} 28... Bc5 {[%clk 0:00:11]} 29. Qg5
{[%clk 0:00:11.5]} 29... Bd6 {[%clk 0:00:11.3]} 30. Rh3 {[%clk 0:00:11.7]} 30...
Rxh3 {[%clk 0:00:08.6]} 31. gxh3 {[%clk 0:00:12.6]} 31... e5 {[%clk 0:00:09.3]}
32. Ne2 {[%clk 0:00:10.8]} 32... Bxh3 {[%clk 0:00:08.3]} 33. Qxg6 {[%clk
0:00:10.6]} 33... Qc6 {[%clk 0:00:04.8]} 34. Ng3 {[%clk 0:00:07.4]} 34... d4
{[%clk 0:00:04.3]} 35. Qe4 {[%clk 0:00:03.3]} 35... dxc3 {[%clk 0:00:02.7]} 36.
Qxc6 {[%clk 0:00:03]} 36... bxc6 {[%clk 0:00:03.6]} 37. Ne4 {[%clk 0:00:02.7]}
37... Bb4 {[%clk 0:00:02.7]} 38. Rc1 {[%clk 0:00:03.1]} 38... Bf5 {[%clk
0:00:02.2]} 39. Nxc3 {[%clk 0:00:03.4]} 39... Be6 {[%clk 0:00:02.8]} 40. Ne4
{[%clk 0:00:03.1]} 40... Bd5 {[%clk 0:00:03]} 41. Nc3 {[%clk 0:00:02.8]} 41...
Ba3 {[%clk 0:00:02.2]} 42. Rc2 {[%clk 0:00:02.8]} 42... Be6 {[%clk 0:00:01.9]}
43. Na4 {[%clk 0:00:03]} 43... Bd5 {[%clk 0:00:01.8]} 44. Rd2 {[%clk 0:00:02.9]}
44... Bb4 {[%clk 0:00:01.8]} 45. Rc2 {[%clk 0:00:03]} 45... Kf7 {[%clk
0:00:02.2]} 46. Rc1 {[%clk 0:00:03.6]} 46... Ke6 {[%clk 0:00:02.4]} 47. Nc3
{[%clk 0:00:04.1]} 47... Bf3 {[%clk 0:00:02]} 48. Nb1 {[%clk 0:00:04.5]} 48...
Kd6 {[%clk 0:00:02.1]} 49. a3 {[%clk 0:00:05]} 49... Ba5 {[%clk 0:00:02.4]} 50.
Rc2 {[%clk 0:00:05.3]} 50... e4 {[%clk 0:00:02.7]} 51. Rb2 {[%clk 0:00:05.6]}
51... Bd8 {[%clk 0:00:02.1]} 52. Nd2 {[%clk 0:00:05.7]} 52... Bf6 {[%clk
0:00:02.6]} 53. Rc2 {[%clk 0:00:05.7]} 53... Bd1 {[%clk 0:00:02.6]} 54. Nc4+
{[%clk 0:00:05.4]} 54... Kd5 {[%clk 0:00:02.3]} 55. Rc1 {[%clk 0:00:06.3]} 55...
Bb3 {[%clk 0:00:02.6]} 56. Ne3+ {[%clk 0:00:06.7]} 56... Kd6 {[%clk 0:00:02.5]}
57. Rb1 {[%clk 0:00:07.1]} 57... Be6 {[%clk 0:00:02.3]} 58. Re1 {[%clk
0:00:07.1]} 58... c5 {[%clk 0:00:02.2]} 59. Rc1 {[%clk 0:00:07.3]} 59... Bd4
{[%clk 0:00:02.7]} 60. Kf1 {[%clk 0:00:07.7]} 60... a5 {[%clk 0:00:03.3]} 61.
Ke2 {[%clk 0:00:08.2]} 61... a4 {[%clk 0:00:02.9]} 62. Nc4+ {[%clk 0:00:08.4]}
62... Kc6 {[%clk 0:00:02.4]} 63. Nd2 {[%clk 0:00:08.5]} 63... Kb5 {[%clk
0:00:02.7]} 64. Nxe4 {[%clk 0:00:08.5]} 64... Bb3 {[%clk 0:00:02.1]} 65. Nd6+
{[%clk 0:00:08]} 65... Kc6 {[%clk 0:00:02.3]} 66. Ne4 {[%clk 0:00:08]} 66... Kd5
{[%clk 0:00:02.4]} 67. f3 {[%clk 0:00:08.6]} 67... c4 {[%clk 0:00:02]} 68. Nc3+
{[%clk 0:00:09.2]} 68... Kc5 {[%clk 0:00:02.4]} 69. Kd2 {[%clk 0:00:09.4]} 69...
Be5 {[%clk 0:00:02.1]} 70. Rg1 {[%clk 0:00:07.2]} 70... Bf4+ {[%clk 0:00:01.7]}
71. Ke2 {[%clk 0:00:07.2]} 71... Bxh2 {[%clk 0:00:01.2]} 72. Rg5+ {[%clk
0:00:06.6]} 1-0

[Event "Late-Titled-Tuesday-Blitz-June-04-2024"]
[Site "Chess.com"]
[Date "2024.06.04"]
[Round "9"]
[White "cristiano78"]
[Black "MNyuyu"]
[Result "0-1"]
[WhiteElo "2227"]
[BlackElo "2412"]
[TimeControl "180+1"]
[EndTime "15:44:37 PDT"]
[Termination "MNyuyu won on time"]

1. d4 {[%clk 0:02:59]} 1... d5 {[%clk 0:02:58.8]} 2. c4 {[%clk 0:02:59.1]} 2...
e6 {[%clk 0:02:59.4]} 3. Nf3 {[%clk 0:02:58.5]} 3... h6 {[%clk 0:02:59.9]} 4.
Nc3 {[%clk 0:02:58.6]} 4... Nf6 {[%clk 0:03:00.2]} 5. Bf4 {[%clk 0:02:57.5]}
5... Bd6 {[%clk 0:03:00.7]} 6. Bxd6 {[%clk 0:02:57.5]} 6... Qxd6 {[%clk
0:03:01.6]} 7. e3 {[%clk 0:02:57.9]} 7... O-O {[%clk 0:03:00.9]} 8. Rc1 {[%clk
0:02:57.8]} 8... a6 {[%clk 0:03:00.9]} 9. c5 {[%clk 0:02:57.1]} 9... Qe7 {[%clk
0:03:00.7]} 10. b4 {[%clk 0:02:57.4]} 10... Nbd7 {[%clk 0:02:58.3]} 11. Be2
{[%clk 0:02:55.4]} 11... e5 {[%clk 0:02:57.6]} 12. dxe5 {[%clk 0:02:54.5]} 12...
Nxe5 {[%clk 0:02:57.6]} 13. Nxd5 {[%clk 0:02:51]} 13... Nxd5 {[%clk 0:02:54]}
14. Qxd5 {[%clk 0:02:50.1]} 14... Nxf3+ {[%clk 0:02:53.9]} 15. Bxf3 {[%clk
0:02:47.5]} 15... c6 {[%clk 0:02:54]} 16. Qd4 {[%clk 0:02:42.1]} 16... Be6
{[%clk 0:02:51.7]} 17. a4 {[%clk 0:02:34.2]} 17... Rad8 {[%clk 0:02:51.7]} 18.
Qc3 {[%clk 0:02:33.4]} 18... Rd7 {[%clk 0:02:47.6]} 19. O-O {[%clk 0:02:32.9]}
19... Rfd8 {[%clk 0:02:48.1]} 20. Rfd1 {[%clk 0:02:32.7]} 20... Bd5 {[%clk
0:02:46.4]} 21. Bxd5 {[%clk 0:02:31.4]} 21... Rxd5 {[%clk 0:02:47.3]} 22. Rxd5
{[%clk 0:02:31]} 22... Rxd5 {[%clk 0:02:47.3]} 23. h3 {[%clk 0:02:29.2]} 23...
Qd7 {[%clk 0:02:46.5]} 24. Qc4 {[%clk 0:02:19.4]} 24... Rd2 {[%clk 0:02:44.4]}
25. Qb3 {[%clk 0:02:00.5]} 25... g6 {[%clk 0:02:25.3]} 26. b5 {[%clk 0:01:54.9]}
26... axb5 {[%clk 0:02:23.4]} 27. axb5 {[%clk 0:01:54.4]} 27... cxb5 {[%clk
0:02:23.2]} 28. Rb1 {[%clk 0:01:53.1]} 28... h5 {[%clk 0:02:09.1]} 29. Qxb5
{[%clk 0:01:48.3]} 29... Rd1+ {[%clk 0:02:07.9]} 30. Kh2 {[%clk 0:01:45.4]}
30... Qc7+ {[%clk 0:02:06.2]} 31. g3 {[%clk 0:01:42]} 31... Rxb1 {[%clk
0:01:58]} 32. Qxb1 {[%clk 0:01:40.2]} 32... Qxc5 {[%clk 0:01:58.5]} 33. Qxb7
{[%clk 0:01:39.8]} 33... Qc2 {[%clk 0:01:56.1]} 34. Qb8+ {[%clk 0:01:37.6]}
34... Kg7 {[%clk 0:01:52.7]} 35. Qe5+ {[%clk 0:01:36.1]} 35... Kg8 {[%clk
0:01:52.4]} 36. Qf6 {[%clk 0:01:33.6]} 36... Qa2 {[%clk 0:01:50.8]} 37. g4
{[%clk 0:01:28.6]} 37... hxg4 {[%clk 0:01:50.5]} 38. hxg4 {[%clk 0:01:28.7]}
38... Qc4 {[%clk 0:01:43.7]} 39. Kg3 {[%clk 0:01:28]} 39... Qc7+ {[%clk
0:01:39]} 40. f4 {[%clk 0:01:23.4]} 40... Qc4 {[%clk 0:01:37.7]} 41. Qd8+ {[%clk
0:01:18]} 41... Kh7 {[%clk 0:01:35]} 42. Qd7 {[%clk 0:01:11.5]} 42... Qb3 {[%clk
0:01:29.7]} 43. Kf3 {[%clk 0:01:04.3]} 43... Kg8 {[%clk 0:01:28.2]} 44. f5
{[%clk 0:01:03.2]} 44... gxf5 {[%clk 0:01:26.2]} 45. gxf5 {[%clk 0:01:03.3]}
45... Qb1 {[%clk 0:01:09.2]} 46. Qd8+ {[%clk 0:01:00.5]} 46... Kh7 {[%clk
0:01:06]} 47. Qh4+ {[%clk 0:00:57.4]} 47... Kg8 {[%clk 0:01:02.9]} 48. Qg5+
{[%clk 0:00:52.8]} 48... Kf8 {[%clk 0:01:00.7]} 49. f6 {[%clk 0:00:49.1]} 49...
Qf1+ {[%clk 0:00:59.2]} 50. Ke4 {[%clk 0:00:47]} 50... Qc4+ {[%clk 0:00:59.3]}
51. Kf5 {[%clk 0:00:44.3]} 51... Qd5+ {[%clk 0:00:57.8]} 52. Kg4 {[%clk
0:00:39.7]} 52... Qg2+ {[%clk 0:00:57.4]} 53. Kf4 {[%clk 0:00:36.5]} 53... Qf2+
{[%clk 0:00:55.6]} 54. Ke5 {[%clk 0:00:34.1]} 54... Qb2+ {[%clk 0:00:54.7]} 55.
Kf5 {[%clk 0:00:26.7]} 55... Qb5+ {[%clk 0:00:51.5]} 56. Kg4 {[%clk 0:00:25.3]}
56... Qe2+ {[%clk 0:00:51.5]} 57. Kg3 {[%clk 0:00:22.8]} 57... Qe1+ {[%clk
0:00:51.6]} 58. Kf3 {[%clk 0:00:21.2]} 58... Qf1+ {[%clk 0:00:51.1]} 59. Ke4
{[%clk 0:00:21.2]} 59... Qc4+ {[%clk 0:00:49]} 60. Ke5 {[%clk 0:00:19.9]} 60...
Qb5+ {[%clk 0:00:46.5]} 61. Kf4 {[%clk 0:00:19.4]} 61... Qc4+ {[%clk 0:00:44.2]}
62. e4 {[%clk 0:00:18.4]} 62... Qc1+ {[%clk 0:00:44.2]} 63. Kf5 {[%clk 0:00:18]}
63... Qc5+ {[%clk 0:00:43]} 64. e5 {[%clk 0:00:16.6]} 64... Qc2+ {[%clk
0:00:42.1]} 65. Kg4 {[%clk 0:00:16]} 65... Qg2+ {[%clk 0:00:41.2]} 66. Kf4
{[%clk 0:00:15.9]} 66... Qd2+ {[%clk 0:00:40.3]} 67. Kf5 {[%clk 0:00:13.6]}
67... Qd7+ {[%clk 0:00:38.9]} 68. Ke4 {[%clk 0:00:12.2]} 68... Qc6+ {[%clk
0:00:34]} 69. Kf4 {[%clk 0:00:11.2]} 69... Qc4+ {[%clk 0:00:33]} 70. Kg3 {[%clk
0:00:08.3]} 70... Qd3+ {[%clk 0:00:32.3]} 71. Kh4 {[%clk 0:00:07]} 71... Qe4+
{[%clk 0:00:30.5]} 72. Kh5 {[%clk 0:00:05.8]} 72... Qh1+ {[%clk 0:00:28.1]} 73.
Qh4 {[%clk 0:00:04.3]} 73... Qf3+ {[%clk 0:00:26.4]} 74. Qg4 {[%clk 0:00:02.9]}
74... Qh1+ {[%clk 0:00:22.5]} 75. Kg5 {[%clk 0:00:02.9]} 75... Qc1+ {[%clk
0:00:20.8]} 0-1